bitfinex/quotes_BTCUSD_20251011
["timestamp","ask_amount","ask_price","bid_price","bid_amount"]
[1760223396422,1.08934272,111350.0,111340.0,0.00345858]
[1760223397182,0.69690417,111350.0,111340.0,0.00345858]
[1760223397570,5.88034227,111350.0,111340.0,0.00345858]
[1760223400140,5.90749534,111350.0,111340.0,0.00345858]
[1760223400340,6.35058769,111350.0,111340.0,0.00345858]
[1760223400539,5.90749534,111350.0,111340.0,0.00345858]
[1760223400766,6.37478353,111350.0,111340.0,0.00345858]
[1760223400975,6.46350287,111350.0,111340.0,0.00345858]
[1760223401176,1.58308887,111350.0,111340.0,0.00345858]
[1760223401423,6.46350287,111350.0,111340.0,0.00345858]
[1760223401756,1.58308887,111350.0,111340.0,0.00345858]
[1760223401949,6.46350287,111350.0,111340.0,0.00345858]
[1760223402382,0.69690417,111350.0,111340.0,0.00345858]
[1760223402595,6.46350287,111350.0,111340.0,0.00345858]
[1760223403181,1.02412411,111350.0,111340.0,0.00345858]
[1760223403427,5.90453811,111350.0,111340.0,0.00345858]
[1760223403564,5.88034227,111350.0,111340.0,0.00345858]
[1760223404174,5.43724992,111350.0,111340.0,0.00345858]
[1760223404377,5.88034227,111350.0,111340.0,0.00345858]
[1760223404735,1.08861814,111350.0,111340.0,0.00345858]
[1760223404932,5.96903214,111350.0,111340.0,0.00345858]
[1760223405632,6.05658516,111350.0,111340.0,0.00345858]
[1760223406233,1.17617116,111350.0,111340.0,0.00345858]
[1760223406487,5.94071275,111350.0,111340.0,0.00345858]
[1760223406674,1.06029875,111350.0,111340.0,0.00345858]
[1760223406878,5.94071275,111350.0,111340.0,0.00345858]
[1760223407695,1.06029875,111350.0,111340.0,0.00345858]
[1760223407896,5.94071275,111350.0,111340.0,0.00345858]
[1760223408255,1.06029875,111350.0,111340.0,0.00345858]
[1760223408614,5.94071275,111350.0,111340.0,0.00345858]
[1760223408808,1.06029875,111350.0,111340.0,0.00345858]
[1760223409011,5.94071275,111350.0,111340.0,0.00345858]
[1760223409223,6.02943209,111350.0,111340.0,0.00345858]
[1760223409424,6.05658516,111350.0,111340.0,0.00345858]
[1760223409579,1.14901809,111350.0,111340.0,0.00345858]
[1760223409789,6.02943209,111350.0,111340.0,0.00345858]
[1760223410412,6.02939911,111350.0,111340.0,0.00345858]
[1760223410822,1.14898511,111350.0,111340.0,0.00345858]
[1760223411038,1.06026577,111350.0,111340.0,0.00345858]
[1760223411247,5.94067977,111350.0,111340.0,0.00345858]
[1760223411973,5.93798557,111350.0,111340.0,0.00345858]
[1760223412404,5.41769528,111350.0,111340.0,0.00345858]
[1760223412603,5.92118758,111350.0,111340.0,0.00345858]
[1760223412762,5.90182593,111350.0,111340.0,0.00345858]
[1760223413839,5.90082593,111350.0,111340.0,0.00345858]
[1760223414279,5.97772952,111350.0,111340.0,0.00345858]
[1760223415780,1.12446859,111350.0,111340.0,0.00345858]
[1760223415988,6.0410392,111350.0,111340.0,0.00345858]
[1760223416832,1.1606252,111350.0,111340.0,0.00345858]
[1760223417050,6.0410392,111350.0,111340.0,0.00345858]
[1760223417221,6.0420392,111350.0,111340.0,0.00345858]
[1760223418427,6.0430392,111350.0,111340.0,0.00345858]
[1760223418851,6.06724127,111350.0,111340.0,0.00345858]
[1760223419197,1.18682727,111350.0,111340.0,0.00345858]
[1760223419397,6.06724127,111350.0,111340.0,0.00345858]
[1760223420374,6.09320871,111350.0,111340.0,0.00345858]
[1760223420548,6.23856432,111350.0,111340.0,0.00345858]
[1760223420753,6.26284953,111350.0,111340.0,0.00345858]
[1760223421066,5.40007623,111320.0,111310.0,0.0004]
[1760223421390,6.17174749,111320.0,111310.0,0.00055119]
[1760223421590,6.19596769,111320.0,111310.0,1e-08]
[1760223421825,6.18584393,111320.0,111310.0,1e-08]
[1760223421994,6.23896444,111320.0,111310.0,1e-08]
[1760223422431,6.212997,111320.0,111310.0,1e-08]
[1760223423857,6.18648044,111320.0,111310.0,1e-08]
[1760223424076,6.21164521,111320.0,111310.0,1e-08]
[1760223424864,6.18449214,111320.0,111310.0,1e-08]
[1760223425698,6.17609257,111320.0,111310.0,1e-08]
[1760223425905,5.62801325,111320.0,111310.0,1e-08]
[1760223426139,6.05363373,111320.0,111310.0,1e-08]
[1760223426315,1.17321973,111320.0,111310.0,1e-08]
[1760223426472,6.05363373,111320.0,111310.0,1e-08]
[1760223426856,6.05359419,111320.0,111310.0,0.00175855]
[1760223427058,1.17318019,111320.0,111310.0,0.00175855]
[1760223427168,6.05359419,111320.0,111310.0,0.00175855]
[1760223427775,6.08074726,111320.0,111310.0,0.00175855]
[1760223428512,1.20033326,111320.0,111310.0,0.00175855]
[1760223428713,6.08074726,111320.0,111310.0,0.00175855]
[1760223429581,6.05359419,111320.0,111310.0,0.00175855]
[1760223431818,6.08588779,111320.0,111310.0,0.00175855]
[1760223432037,6.05089926,111320.0,111310.0,0.00175855]
[1760223432441,1.17048526,111320.0,111310.0,0.00175855]
[1760223432645,6.05089926,111320.0,111310.0,0.00175855]
[1760223434535,1.17048526,111320.0,111310.0,0.00175855]
[1760223434748,6.05089926,111320.0,111310.0,0.00175855]
[1760223434920,5.99993992,111320.0,111310.0,0.00175855]
[1760223435128,5.66263485,111320.0,111310.0,0.00175855]
[1760223435759,6.00263485,111320.0,111310.0,0.00175855]
[1760223436331,1.12222085,111320.0,111310.0,0.00175855]
[1760223436732,6.00263485,111320.0,111310.0,0.00175855]
[1760223436952,1.18676954,111320.0,111310.0,0.00175855]
[1760223437178,6.06718354,111320.0,111310.0,0.00175855]
[1760223437386,6.09433661,111320.0,111310.0,0.00175855]
[1760223437598,1.21392261,111320.0,111310.0,0.00175855]
[1760223437810,6.11850726,111320.0,111310.0,0.00175855]
[1760223438833,1.23809326,111320.0,111310.0,0.00175855]
[1760223439007,6.11850726,111320.0,111310.0,0.00175855]
[1760223440314,6.00263485,111320.0,111310.0,0.00175855]
[1760223440722,1.12222085,111320.0,111310.0,0.00175855]
[1760223440921,5.49914255,111320.0,111310.0,0.00175855]
[1760223441272,5.4749719,111320.0,111310.0,0.02686855]
[1760223441510,5.4749719,111320.0,111310.0,0.04732855]
[1760223441712,5.47497281,111320.0,111310.0,0.04732855]
[1760223442124,5.56369215,111320.0,111310.0,0.04732855]
[1760223442756,5.56369215,111320.0,111310.0,0.00175855]
[1760223445140,5.34118784,111320.0,111310.0,0.00175855]
[1760223445347,5.52085007,111320.0,111310.0,0.00175855]
[1760223446177,5.43213073,111320.0,111310.0,0.00175855]
[1760223447011,5.43213073,111320.0,111310.0,0.04732855]
[1760223447637,5.43213073,111320.0,111310.0,0.02221855]
[1760223448250,5.43213073,111320.0,111310.0,0.04732855]
[1760223451689,5.43213073,111320.0,111310.0,0.02221855]
[1760223451938,6.02434237,111320.0,111310.0,0.00175855]
[1760223453781,5.93562303,111320.0,111310.0,0.00175855]
[1760223454052,5.43213073,111320.0,111310.0,0.04705855]
[1760223454397,0.5323793,111320.0,111310.0,0.26677692]
[1760223456044,0.5323793,111320.0,111310.0,0.08709855]
[1760223456199,1.02873164,111320.0,111310.0,0.08709855]
[1760223456399,0.58559357,111320.0,111310.0,0.08709855]
[1760223456641,0.97551737,111320.0,111310.0,0.26677692]
[1760223457450,0.5323793,111320.0,111310.0,0.26677692]
[1760223458328,0.35271707,111320.0,111310.0,0.29692882]
[1760223461103,0.5323793,111320.0,111310.0,0.29692882]
[1760223463144,0.5323793,111320.0,111310.0,0.07721045]
[1760223463335,0.5323793,111320.0,111310.0,0.29675882]
[1760223463759,0.51966223,111320.0,111310.0,0.29675882]
[1760223465168,0.17966223,111320.0,111310.0,0.29675882]
[1760223465596,0.17966223,111320.0,111310.0,0.25688882]
[1760223469996,0.51966223,111320.0,111310.0,0.25688882]
[1760223470200,0.51915438,111320.0,111310.0,0.29675882]
[1760223471474,0.27438092,111320.0,111310.0,0.25688882]
[1760223471895,0.45404315,111320.0,111310.0,0.25688882]
[1760223472639,0.45404315,111320.0,111310.0,0.29675882]
[1760223474749,0.27438092,111320.0,111310.0,0.29675882]
[1760223474950,0.45404315,111320.0,111310.0,0.29675882]
[1760223476144,0.45404315,111320.0,111310.0,0.56545882]
[1760223477437,0.45404315,111320.0,111310.0,0.29675882]
[1760223478752,0.45404315,111320.0,111310.0,0.25688882]
[1760223480130,0.45404315,111320.0,111310.0,0.29675882]
[1760223480881,0.45404315,111320.0,111310.0,0.07721045]
[1760223481685,0.45404315,111320.0,111310.0,0.25688882]
[1760223482024,0.45404315,111320.0,111310.0,0.29491882]
[1760223482444,0.45404315,111320.0,111310.0,0.25688882]
[1760223483437,0.45404315,111320.0,111310.0,0.29491882]
[1760223484070,0.27438092,111320.0,111310.0,0.29491882]
[1760223484293,0.45404315,111320.0,111310.0,0.29491882]
[1760223485104,0.45404315,111320.0,111310.0,0.07721045]
[1760223485721,0.45404315,111320.0,111310.0,0.03191045]
[1760223485952,0.54276249,111320.0,111310.0,0.03191045]
[1760223486747,0.17966223,111320.0,111310.0,0.00175855]
[1760223486932,5.4811368,111320.0,111310.0,0.00175855]
[1760223487105,5.09636853,111320.0,111310.0,0.00175855]
[1760223487306,5.49027603,111320.0,111310.0,0.00175855]
[1760223487711,0.60986203,111320.0,111310.0,0.00175855]
[1760223487923,5.49027603,111320.0,111310.0,0.00175855]
[1760223488162,5.47341134,111320.0,111310.0,0.00175855]
[1760223488924,5.81341134,111320.0,111310.0,0.00175855]
[1760223489759,5.41950384,111320.0,111310.0,0.00175855]
[1760223490020,5.40007623,111320.0,111310.0,0.00175855]
[1760223490225,5.40007623,111320.0,111310.0,0.02836855]
[1760223490434,5.40007623,111320.0,111310.0,0.00175855]
[1760223491650,5.48879557,111320.0,111310.0,0.00175855]
[1760223495952,5.88270307,111320.0,111310.0,0.00175855]
[1760223497314,5.90211141,111320.0,111310.0,0.00175855]
[1760223499356,1.02169741,111320.0,111310.0,0.00175855]
[1760223499558,5.90211141,111320.0,111310.0,0.00175855]
[1760223500161,5.55220384,111320.0,111310.0,0.00175855]
[1760223500401,5.94611134,111320.0,111310.0,0.00175855]
[1760223500556,1.06569734,111320.0,111310.0,0.00175855]
[1760223500751,5.94611134,111320.0,111310.0,0.00175855]
[1760223503889,1.06569734,111320.0,111310.0,0.00175855]
[1760223504093,5.94611134,111320.0,111310.0,0.00175855]
[1760223505163,1.06569734,111320.0,111310.0,0.00175855]
[1760223505564,5.94611134,111320.0,111310.0,0.00175855]
[1760223505992,1.06569734,111320.0,111310.0,0.00175855]
[1760223506195,5.94611134,111320.0,111310.0,0.00175855]
[1760223507012,1.10345734,111320.0,111310.0,0.00175855]
[1760223507356,5.98387134,111320.0,111310.0,0.00175855]
[1760223507556,1.10345734,111320.0,111310.0,0.00175855]
[1760223507883,5.98387134,111320.0,111310.0,0.00175855]
[1760223508297,0.98758493,111320.0,111310.0,0.00175855]
[1760223508491,5.86799893,111320.0,111310.0,0.00175855]
[1760223508927,5.47409143,111320.0,111310.0,0.00175855]
[1760223509137,5.45724457,111320.0,111310.0,0.22787692]
[1760223509340,5.258174,111320.0,111310.0,0.26590692]
[1760223509547,0.03776,111320.0,111310.0,0.29605882]
[1760223509960,0.03776,111320.0,111310.0,0.68996632]
[1760223510163,0.03776,111320.0,111310.0,0.71699572]
[1760223511574,0.03776,111320.0,111310.0,0.32308822]
[1760223511765,0.51964665,111330.0,111320.0,0.20981413]
[1760223511967,0.51964665,111330.0,111320.0,0.25345413]
[1760223512351,0.51964665,111330.0,111320.0,0.29158413]
[1760223513342,0.59047254,111330.0,111320.0,0.0301519]
[1760223513541,0.51964665,111330.0,111320.0,0.0737919]
[1760223513740,0.51964665,111330.0,111320.0,0.29158413]
[1760223513962,0.51964665,111330.0,111320.0,0.25345413]
[1760223514511,0.34,111330.0,111320.0,0.29158413]
[1760223515518,0.51964609,111330.0,111320.0,0.29158413]
[1760223515933,0.59047192,111330.0,111320.0,0.02702876]
[1760223516157,0.91355359,111330.0,111310.0,0.19950679]
[1760223516332,0.51966223,111320.0,111310.0,0.20982869]
[1760223516552,0.51966223,111320.0,111310.0,0.05718172]
[1760223516760,0.91356973,111320.0,111310.0,0.02702982]
[1760223516964,5.88270307,111320.0,111310.0,1e-08]
[1760223517323,5.90985614,111320.0,111310.0,1e-08]
[1760223517806,5.90985614,111320.0,111310.0,0.00175855]
[1760223518168,1.02944214,111320.0,111310.0,0.00175855]
[1760223518805,5.90985614,111320.0,111310.0,0.00175855]
[1760223519500,0.63553464,111320.0,111310.0,0.00175855]
[1760223519708,5.95927172,111320.0,111310.0,0.00175855]
[1760223519931,0.99013838,111320.0,111310.0,0.00175855]
[1760223520134,5.87055238,111320.0,111310.0,0.00175855]
[1760223520660,5.88993491,111320.0,111310.0,0.00175855]
[1760223521281,5.44661183,111320.0,111310.0,0.00175855]
[1760223521482,1.00952091,111320.0,111310.0,0.00175855]
[1760223521728,5.88993491,111320.0,111310.0,0.00175855]
[1760223522142,1.00952091,111320.0,111310.0,0.00175855]
[1760223522365,5.88993491,111320.0,111310.0,0.00175855]
[1760223522570,5.95150118,111320.0,111310.0,0.00175855]
[1760223523572,5.97865425,111320.0,111310.0,0.00175855]
[1760223524513,5.97965425,111320.0,111310.0,0.00175855]
[1760223524708,5.95250118,111320.0,111310.0,0.00175855]
[1760223524918,5.42045876,111320.0,111310.0,0.00175855]
[1760223525062,5.86378184,111320.0,111310.0,0.00175855]
[1760223525267,0.98336784,111320.0,111310.0,0.00175855]
[1760223525468,5.86378184,111320.0,111310.0,0.00175855]
[1760223525784,0.98336784,111320.0,111310.0,0.00175855]
[1760223526129,5.91543599,111320.0,111310.0,0.00175855]
[1760223526329,5.94258906,111320.0,111310.0,0.00175855]
[1760223526521,6.42870362,111320.0,111310.0,0.00175855]
[1760223526679,6.42977537,111320.0,111310.0,0.00175855]
[1760223526866,5.54312921,111320.0,111310.0,0.00175855]
[1760223527059,5.98645229,111320.0,111310.0,0.00175855]
[1760223527260,6.01062408,111320.0,111310.0,0.00175855]
[1760223528333,1.10603829,111320.0,111310.0,0.00175855]
[1760223528535,5.98645229,111320.0,111310.0,0.00175855]
[1760223529001,0.66271521,111320.0,111310.0,0.00175855]
[1760223529174,5.94540507,111320.0,111310.0,0.00175855]
[1760223529375,5.50208199,111320.0,111310.0,0.00175855]
[1760223529533,5.94540507,111320.0,111310.0,0.00175855]
[1760223529734,5.56154184,111320.0,111310.0,0.04562855]
[1760223529997,5.90154184,111320.0,111310.0,0.04562855]
[1760223530197,5.45821876,111320.0,111310.0,0.04562855]
[1760223530408,0.57780476,111320.0,111310.0,0.04562855]
[1760223530720,0.57680476,111320.0,111310.0,0.04562855]
[1760223531390,1.00074531,111320.0,111310.0,0.04562855]
[1760223533657,0.37776,111320.0,111310.0,0.26264692]
[1760223534017,0.55742223,111320.0,111310.0,0.26264692]
[1760223534583,0.37776,111320.0,111310.0,0.26264692]
[1760223534853,0.55742223,111320.0,111310.0,0.26264692]
[1760223535857,0.37776,111320.0,111310.0,0.29279882]
[1760223536062,0.37776,111320.0,111310.0,0.7361219]
[1760223536219,0.37776,111320.0,111310.0,0.31982973]
[1760223536220,0.55742223,111320.0,111310.0,0.31982973]
[1760223536577,1.08946465,111320.0,111310.0,0.07578045]
[1760223536800,1.00074531,111320.0,111310.0,0.11312045]
[1760223536967,0.55742223,111320.0,111310.0,0.11312045]
[1760223537583,0.55742223,111320.0,111310.0,0.29279882]
[1760223537758,0.55742223,111320.0,111310.0,0.11312045]
[1760223539633,0.37776,111320.0,111310.0,0.29279882]
[1760223539915,0.55742223,111320.0,111310.0,0.29279882]
[1760223540464,0.51966223,111320.0,111310.0,0.29279882]
[1760223540667,0.51966223,111320.0,111310.0,0.11312045]
[1760223541386,0.96298531,111320.0,111310.0,0.07578045]
[1760223541617,1.03353399,111320.0,111310.0,0.07578045]
[1760223541928,0.96298531,111320.0,111310.0,0.03191045]
[1760223542073,0.96298531,111320.0,111310.0,0.07674045]
[1760223542547,0.96298531,111320.0,111310.0,0.05044045]
[1760223542752,5.84339931,111320.0,111310.0,0.00175855]
[1760223544130,5.87055238,111320.0,111310.0,0.00175855]
[1760223544306,5.4272293,111320.0,111310.0,0.00175855]
[1760223544511,5.87055238,111320.0,111310.0,0.00175855]
[1760223544924,5.4272293,111320.0,111310.0,0.00175855]
[1760223545058,5.87055238,111320.0,111310.0,0.00175855]
[1760223545459,5.93062634,111320.0,111310.0,0.00175855]
[1760223545702,5.87055238,111320.0,111310.0,0.00175855]
[1760223546333,5.84339931,111320.0,111310.0,0.00175855]
[1760223547398,5.84339931,111320.0,111310.0,0.27045855]
[1760223549898,5.40007623,111320.0,111310.0,0.27045855]
[1760223550109,5.84339931,111320.0,111310.0,0.27045855]
[1760223550915,5.89968116,111320.0,111310.0,0.27045855]
[1760223551158,5.9256486,111320.0,111310.0,0.27045855]
[1760223552119,5.45635808,111320.0,111310.0,0.27045855]
[1760223552323,5.90068116,111320.0,111310.0,0.27045855]
[1760223552930,5.87155238,111320.0,111310.0,0.27045855]
[1760223553142,0.99113838,111320.0,111310.0,0.27045855]
[1760223553377,5.87155238,111320.0,111310.0,0.00175855]
[1760223553825,5.53155238,111320.0,111310.0,0.00175855]
[1760223554019,0.65113838,111320.0,111310.0,0.00175855]
[1760223554219,5.53155238,111320.0,111310.0,0.00175855]
[1760223554561,5.62027172,111320.0,111310.0,0.00175855]
[1760223555201,5.53155238,111320.0,111310.0,0.00175855]
[1760223555638,0.65113838,111320.0,111310.0,0.00175855]
[1760223555816,5.53155238,111320.0,111310.0,0.00175855]
[1760223556619,0.65113838,111320.0,111310.0,0.00175855]
[1760223556825,5.53155238,111320.0,111310.0,0.00175855]
[1760223557086,5.62027172,111320.0,111310.0,0.00175855]
[1760223558100,5.96027172,111320.0,111310.0,0.00175855]
[1760223558867,1.07985772,111320.0,111310.0,0.00175855]
[1760223559090,5.96027172,111320.0,111310.0,0.00175855]
[1760223559840,5.72661238,111320.0,111310.0,0.00175855]
[1760223560027,5.90627461,111320.0,111310.0,0.00175855]
[1760223562437,1.02586061,111320.0,111310.0,0.00175855]
[1760223562643,5.90627461,111320.0,111310.0,0.00175855]
[1760223563053,5.40007623,111320.0,111310.0,0.02805855]
[1760223563257,5.84339931,111320.0,111310.0,0.00175855]
[1760223569157,5.40007623,111320.0,111310.0,0.00175855]
[1760223569368,5.84339931,111320.0,111310.0,0.00175855]
[1760223569744,5.86281807,111320.0,111310.0,0.00175855]
[1760223571120,5.88303896,111320.0,111310.0,0.00175855]
[1760223572283,5.43971588,111320.0,111310.0,0.00175855]
[1760223572487,5.88303896,111320.0,111310.0,0.00175855]
[1760223574292,5.86281807,111320.0,111310.0,0.00175855]
[1760223575018,5.86281807,111320.0,111310.0,0.02861855]
[1760223575447,0.98240407,111320.0,111310.0,0.08735855]
[1760223576273,0.96298531,111320.0,111310.0,0.08735855]
[1760223576581,0.51966223,111320.0,111310.0,0.26703692]
[1760223577874,0.21740609,111330.0,111320.0,0.20981413]
[1760223578096,0.55740609,111330.0,111320.0,0.29541413]
[1760223578317,0.5768278,111330.0,111320.0,0.29541413]
[1760223578538,1.00072917,111330.0,111320.0,0.29541413]
[1760223579608,0.55740609,111330.0,111320.0,0.29541413]
[1760223579825,0.55740609,111330.0,111320.0,0.1157519]
[1760223580040,0.55740609,111330.0,111320.0,0.0763519]
[1760223580261,0.55740609,111330.0,111310.0,1e-08]
[1760223580262,0.76817123,111320.0,111310.0,1e-08]
[1760223580614,1.16203114,111320.0,111310.0,0.02686001]
[1760223580717,0.76817123,111320.0,111310.0,0.02686001]
[1760223580936,0.17966223,111320.0,111310.0,0.26527838]
[1760223581153,0.17966223,111320.0,111310.0,0.22587838]
[1760223581368,0.17966223,111320.0,111310.0,0.26484838]
[1760223582206,0.55740609,111330.0,111310.0,0.26484838]
[1760223582419,0.37776,111330.0,111320.0,0.25597845]
[1760223582633,0.37776,111330.0,111320.0,0.26440223]
[1760223583257,0.37776,111330.0,111320.0,0.29455413]
[1760223583474,0.55740609,111330.0,111320.0,0.29572638]
[1760223583888,0.55740609,111330.0,111320.0,0.11606415]
[1760223585337,0.55740609,111330.0,111320.0,0.07709415]
[1760223587046,0.55740609,111330.0,111320.0,0.11606415]
[1760223587367,0.55740609,111330.0,111320.0,0.3136926]
[1760223587602,0.55740609,111330.0,111320.0,0.29572638]
[1760223587827,0.55740609,111330.0,111320.0,0.11606415]
[1760223589396,0.55740609,111330.0,111320.0,0.03132415]
[1760223589612,0.55740609,111330.0,111320.0,0.05771415]
[1760223590489,0.64612543,111330.0,111320.0,0.03132415]
[1760223591317,0.55740609,111330.0,111320.0,0.03132415]
[1760223594384,0.55740609,111330.0,111320.0,0.00117225]
[1760223594385,5.83168,111330.0,111320.0,0.00117225]
[1760223594600,5.85657031,111330.0,111320.0,0.00117225]
[1760223595491,5.87596513,111330.0,111320.0,0.00117225]
[1760223595693,5.87696513,111330.0,111320.0,0.00117225]
[1760223595903,5.85207482,111330.0,111320.0,0.00117225]
[1760223596311,5.90396189,111330.0,111320.0,0.00117225]
[1760223596532,1.02354789,111330.0,111320.0,0.00117225]
[1760223596741,5.90396189,111330.0,111320.0,0.00117225]
[1760223597846,1.02354789,111330.0,111320.0,0.00117225]
[1760223598350,5.90396189,111330.0,111320.0,0.00117225]
[1760223598551,1.02354789,111330.0,111320.0,0.00117225]
[1760223599070,5.90396189,111330.0,111320.0,0.00117225]
[1760223599645,1.02354789,111330.0,111320.0,0.00117225]
[1760223599846,5.90396189,111330.0,111320.0,0.00117225]
[1760223600668,1.02354789,111330.0,111320.0,0.00117225]
[1760223600872,5.90396189,111330.0,111320.0,0.00117225]
[1760223601958,1.02354789,111330.0,111320.0,0.00117225]
[1760223602183,0.57780091,111330.0,111320.0,0.00117225]
[1760223602395,5.85207482,111330.0,111320.0,0.00117225]
[1760223603990,5.45821491,111330.0,111320.0,0.02727225]
[1760223604207,5.45821491,111330.0,111320.0,0.04565225]
[1760223604659,0.57780091,111330.0,111320.0,0.04565225]
[1760223604865,0.57680091,111330.0,111320.0,0.04565225]
[1760223605067,0.55740609,111330.0,111320.0,0.04565225]
[1760223605281,0.55740609,111330.0,111320.0,0.13150037]
[1760223605498,0.55740609,111330.0,111320.0,0.3111626]
[1760223605722,0.55740609,111330.0,111320.0,0.68705629]
[1760223605723,0.37776,111330.0,111320.0,0.68705629]
[1760223605950,0.03776,111330.0,111320.0,0.68705629]
[1760223606161,0.03776,111330.0,111320.0,0.71407975]
[1760223606814,0.00096397,111350.0,111340.0,0.20978186]
[1760223607071,0.00096397,111350.0,111340.0,0.62202177]
[1760223607299,0.07162362,111370.0,111360.0,0.2097496]
[1760223607528,0.07162362,111370.0,111360.0,0.2919596]
[1760223607744,0.51956863,111380.0,111370.0,0.0301519]
[1760223607957,0.17956863,111380.0,111370.0,0.1123619]
[1760223608174,0.51956863,111380.0,111370.0,0.0746319]
[1760223608405,0.51956863,111380.0,111370.0,0.1123619]
[1760223608622,0.51956863,111380.0,111370.0,0.07478312]
[1760223608833,0.51956863,111380.0,111370.0,0.11251312]
[1760223609069,0.51956863,111380.0,111370.0,0.13047127]
[1760223609302,0.51956863,111380.0,111370.0,0.31005284]
[1760223609533,0.51956863,111380.0,111370.0,0.29209469]
[1760223609757,0.51956863,111380.0,111370.0,0.11251312]
[1760223610432,0.51956863,111380.0,111370.0,0.31005284]
[1760223610649,0.51956863,111380.0,111370.0,0.11251312]
[1760223612718,0.52132593,111380.0,111370.0,0.11251312]
[1760223613829,0.52132275,111380.0,111370.0,0.31005284]
[1760223614028,0.3417573,111380.0,111370.0,0.29209469]
[1760223614808,0.0017573,111380.0,111370.0,0.6859546]
[1760223616184,0.0017573,111380.0,111370.0,0.29209469]
[1760223616731,0.18132275,111380.0,111370.0,0.07478312]
[1760223616932,0.61117195,111390.0,111370.0,0.07478312]
[1760223617136,0.57342536,111380.0,111370.0,0.04868312]
[1760223617348,0.17956545,111380.0,111370.0,0.00115122]
[1760223617553,0.51956545,111380.0,111370.0,0.05740312]
[1760223617751,0.51956545,111380.0,111370.0,0.03030312]
[1760223617947,5.81843557,111380.0,111370.0,0.00015122]
[1760223618170,5.8825587,111380.0,111370.0,0.00015122]
[1760223618420,5.79383936,111380.0,111370.0,0.00015122]
[1760223619414,0.91342536,111380.0,111370.0,0.00015122]
[1760223619644,5.79383936,111380.0,111370.0,0.00015122]
[1760223620019,0.91342536,111380.0,111370.0,0.00015122]
[1760223620221,5.79383936,111380.0,111370.0,0.00015122]
[1760223620822,0.91342536,111380.0,111370.0,0.00015122]
[1760223621004,5.79383936,111380.0,111370.0,0.00015122]
[1760223621424,5.79483936,111380.0,111370.0,0.00015122]
[1760223621808,0.91442536,111380.0,111370.0,0.00015122]
[1760223622174,5.79483936,111380.0,111370.0,0.00015122]
[1760223622515,0.91442536,111380.0,111370.0,0.00015122]
[1760223622797,5.8835587,111380.0,111370.0,0.00015122]
[1760223623342,5.90029019,111380.0,111370.0,0.00015122]
[1760223623812,5.79483936,111380.0,111370.0,0.00015122]
[1760223624019,5.40097945,111380.0,111370.0,0.00015122]
[1760223624285,5.79483936,111380.0,111370.0,0.00015122]
[1760223624494,0.91442536,111380.0,111370.0,0.00015122]
[1760223624697,5.79483936,111380.0,111370.0,0.00015122]
[1760223624902,5.95122174,111380.0,111370.0,0.00015122]
[1760223625102,6.00483455,111380.0,111370.0,0.00015122]
[1760223625246,0.17961383,111350.0,111340.0,0.27861472]
[1760223625451,0.17961383,111350.0,111340.0,0.34259614]
[1760223625649,0.17961383,111350.0,111340.0,0.27097252]
[1760223625853,0.17961383,111350.0,111340.0,0.08236142]
[1760223626144,0.17961383,111350.0,111340.0,0.22426138]
[1760223626348,0.17961383,111350.0,111340.0,0.26199138]
[1760223627929,0.57347118,111360.0,111340.0,0.26199138]
[1760223628141,4.880414,111350.0,111340.0,0.26199138]
[1760223628343,0.17961383,111350.0,111340.0,0.22426138]
[1760223628742,0.17961383,111350.0,111340.0,0.04638904]
[1760223629149,0.17961383,111350.0,111340.0,0.08520904]
[1760223629731,0.17961383,111350.0,111340.0,0.264839]
[1760223630986,0.17961383,111350.0,111340.0,0.04638904]
[1760223630987,0.1990397,111350.0,111340.0,0.04638904]
[1760223631192,0.17961383,111350.0,111340.0,0.04807904]
[1760223632033,0.91077954,111350.0,111340.0,0.00190904]
[1760223632435,5.79119354,111350.0,111340.0,0.00190904]
[1760223632636,5.39733363,111350.0,111340.0,0.00190904]
[1760223634163,5.81053053,111350.0,111340.0,0.00190904]
[1760223634435,5.97499424,111350.0,111340.0,0.00190904]
[1760223634641,5.97319859,111350.0,111340.0,0.00190904]
[1760223634848,1.09278459,111350.0,111340.0,0.00190904]
[1760223635053,6.02549918,111350.0,111340.0,1e-08]
[1760223635260,6.036521,111350.0,111340.0,1e-08]
[1760223635469,6.03831665,111350.0,111340.0,1e-08]
[1760223635650,6.03831669,111350.0,111340.0,1e-08]
[1760223636457,6.06247923,111350.0,111340.0,1e-08]
[1760223636653,6.06347923,111350.0,111340.0,1e-08]
[1760223636844,6.06447923,111350.0,111340.0,1e-08]
[1760223637028,6.06347923,111350.0,111340.0,1e-08]
[1760223637229,6.13080217,111350.0,111340.0,1e-08]
[1760223637483,6.10663963,111350.0,111340.0,1e-08]
[1760223638536,6.13367421,111350.0,111340.0,1e-08]
[1760223639984,6.10770677,111350.0,111340.0,1e-08]
[1760223640397,6.1318266,111350.0,111340.0,1e-08]
[1760223640805,6.13367421,111350.0,111340.0,1e-08]
[1760223641547,6.62655832,111350.0,111340.0,1e-08]
[1760223641746,6.60059088,111350.0,111340.0,1e-08]
[1760223641957,1.72017688,111350.0,111340.0,1e-08]
[1760223642159,6.65671022,111350.0,111340.0,1e-08]
[1760223642521,6.68171021,111350.0,111340.0,1e-08]
[1760223642728,6.28683639,111310.0,111300.0,0.0004]
[1760223642933,0.60839771,111310.0,111300.0,0.00055146]
[1760223643137,6.40015194,111310.0,111300.0,0.00055146]
[1760223643314,1.05176972,111310.0,111300.0,0.00055146]
[1760223643561,0.96305038,111310.0,111300.0,0.00055146]
[1760223643788,5.84346438,111310.0,111300.0,0.00055146]
[1760223643994,0.96305038,111310.0,111300.0,0.00055146]
[1760223644205,5.84346438,111310.0,111300.0,0.04409146]
[1760223644403,5.84346438,111310.0,111300.0,0.01975146]
[1760223645010,5.84346438,111310.0,111300.0,0.00055146]
[1760223645214,5.93218372,111310.0,111300.0,0.00055146]
[1760223646154,6.37555573,111310.0,111300.0,0.00055146]
[1760223646505,1.49514173,111310.0,111300.0,0.00055146]
[1760223646638,6.37555573,111310.0,111300.0,0.00055146]
[1760223646840,5.93218372,111310.0,111300.0,0.00055146]
[1760223648478,5.93218372,111310.0,111300.0,0.00289639]
[1760223648672,5.48881171,111310.0,111300.0,0.00289639]
[1760223648913,5.93218372,111310.0,111300.0,0.00289639]
[1760223649667,5.84346438,111310.0,111300.0,0.00289639]
[1760223649875,5.84346438,111310.0,111300.0,0.04643639]
[1760223650528,5.84346438,111310.0,111300.0,0.00289639]
[1760223652060,0.99640052,111310.0,111300.0,0.00289639]
[1760223652264,5.87681452,111310.0,111300.0,0.00289639]
[1760223652697,5.87681452,111310.0,111300.0,0.02723639]
[1760223652873,5.91457452,111310.0,111300.0,0.00289639]
[1760223653272,1.03416052,111310.0,111300.0,0.00289639]
[1760223653465,5.94032119,111310.0,111300.0,0.00289639]
[1760223654902,1.05990719,111310.0,111300.0,0.00289639]
[1760223655252,5.94032119,111310.0,111300.0,0.00289639]
[1760223655487,6.3836932,111310.0,111300.0,0.00289639]
[1760223655897,1.5032792,111310.0,111300.0,0.00289639]
[1760223656106,6.3836932,111310.0,111300.0,0.00289639]
[1760223656381,6.40828941,111310.0,111300.0,0.00289639]